Cogmind - Beta 15 @@@ ROGUE MODE // 2025.06.02 @ 22:08:06 Player: HSFM Result: Destroyed by G-34 Mercenary with Small Laser Performance ------------- Evolutions (1) 500 Regions Visited (3) 600 Robots Destroyed (26) 130 Value Destroyed (482) 482 Prototype IDs (0) 0 Alien Tech Used (0) 0 Bonus (251) 251 TOTAL SCORE: 1963 Bonus ------- High Alert Combat Kills 2 Follower Combat Kills 276 Friendly Fire -27 Cogmind --------- Core Integrity 0/400 Matter 300/300 Energy 100/100 System Corruption 7% Temperature Cool (15) Movement Core (1350) Ox26 Location -9/Materials Parts ------- > --- POWER (1) -------- (None) > --- PROPULSION (4) --- (None) > --- UTILITY (2) ------ Huge Storage Unit Targeting Computer > --- WEAPON (2) ------- (None) > --- INVENTORY (25) --- High-capacity Matter Pod (200) Signal Interpreter Light Assault Rifle Mining Laser EMP Trap EMP Trap Peak State ------------ > --- POWER ------------ Improved Ion Engine > --- PROPULSION ------- Aluminum Leg Aluminum Leg Aluminum Leg Aluminum Leg > --- UTILITY ---------- Small Storage Unit Targeting Computer > --- WEAPON ----------- Light EM Pulse Cannon Mini Grenade Launcher > --- INVENTORY -------- Light Ion Engine Huge Storage Unit High-capacity Matter Pod Signal Interpreter Light Assault Rifle Mining Laser EMP Trap EMP Trap [Rating: 12] Favorites ----------- Power Improved Ion Engine Engine Improved Ion Engine Propulsion Aluminum Leg Leg Aluminum Leg Utility Small Storage Unit Storage Small Storage Unit Processor Targeting Computer Protection Propulsion Shielding Weapon Light Assault Rifle Energy Gun Small Laser Energy Cannon Light EM Pulse Cannon Ballistic Gun Light Assault Rifle Launcher Grenade Launcher Special Weapon Mining Laser Build | -11 -10 -10 -9 ------- Run | Yrd Mat Min Mat Slots Evolved 2 | . . . 2 Power . | . . . . Propulsion 2 | . . . 2 Utility . | . . . . Weapon . | . . . . Parts Attached 31 | 7 9 9 6 Power 4 | 2 1 1 . Engine 4 | 2 1 1 . Core . | . . . . Reactor . | . . . . Propulsion 10 | 2 1 3 4 Treads . | . . . . Leg 10 | 2 1 3 4 Wheel . | . . . . Hover . | . . . . Flight . | . . . . Utility 6 | . 5 1 . Device . | . . . . Storage 4 | . 4 . . Processor 1 | . . 1 . Hackware . | . . . . Protection 1 | . 1 . . Artifact . | . . . . Weapon 11 | 3 2 4 2 Energy Gun 1 | 1 . . . Energy Cannon 1 | . . . 1 Ballistic Gun 4 | 2 . 2 . Ballistic Cannon . | . . . . Launcher 2 | . 1 . 1 Special Weapon 3 | . 1 2 . Impact Weapon . | . . . . Slashing Weapon . | . . . . Piercing Weapon . | . . . . Special Melee Weapon . | . . . . Unidentified Prototypes . | . . . . Parts Lost 13 | . 3 . 10 Power 3 | . 1 . 2 Propulsion 6 | . . . 6 Utility . | . . . . Weapon 4 | . 2 . 2 Highest Loss Streak 10 | . 2 . 10 To Critical Strikes . | . . . . Average Backups 4 | 1 4 4 6 Power . | . . . . Propulsion 1 | 1 2 1 . Utility 2 | . . 2 2 Weapon . | . . . 1 Tool/Special . | . . . . Unused Backups 6 | 2 1 1 2 Power . | . . . . Propulsion 3 | 2 . 1 . Utility 2 | . . . 2 Weapon 1 | . 1 . . Tool/Special . | . . . . Average Slot Usage (%) 89 | . 90 90 85 Engine 13 | . 14 14 9 Leg 29 | . 28 28 33 Storage 16 | . 24 14 11 Processor 7 | . . 9 11 Protection 2 | . 1 4 . Energy Cannon 1 | . . . 9 Ballistic Gun 10 | . 7 16 . Launcher 3 | . 9 . 7 Special Weapon 3 | . 3 2 2 Peak Build Rating 12 | 5 7 8 12 Average Rating 7 | 4 6 7 10 On Entrance 4 | . 5 5 8 Naked Turns . | . . . . Heaviest Build 92 | 8 17 84 92 Greatest Support 40 | 20 20 20 40 Greatest Overweight (x) 26 | . . 4 26 Average Overweight (x) . | . . . 1 Largest Inventory Capacity 25 | 5 25 25 25 Average Capacity 11 | 5 7 11 20 Most Carried 9 | 3 7 8 9 Average Carried 6 | 1 4 7 8 Final Capacity 25 | 5 8 8 25 Final Carried 7 | 2 6 7 6 Class Distribution -------------------- 55% | Mutant 44% | Scavenger-Mutant Dominant Class ---------------- Mutant | -10/Materials Scavenger-Mutant | -10/Mines Scavenger-Mutant | -9/Materials Resources | -11 -10 -10 -9 ----------- Run | Yrd Mat Min Mat Matter Collected 1009 | 301 181 184 343 Remotely . | . . . . Salvage Created 613 | 48 222 57 286 Parts 46 | 5 10 9 22 Haulers Intercepted . | . . . . Recyclers Shooed 1 | . . . 1 Parts Field Recycled . | . . . . Retrieved Matter . | . . . . Parts Self-Destructed . | . . . . Prevented . | . . . . Kills | -11 -10 -10 -9 ------- Run | Yrd Mat Min Mat Combat Hostiles Destroyed 18 | 1 5 4 8 Guns 5 | 1 1 3 . Cannons 1 | . . . 1 AOE 12 | . 4 1 7 Classes Destroyed 5 | 2 1 1 1 Worker 3 | 1 . . 2 Recycler 4 | . 2 . 2 Watcher 1 | . . . 1 Swarmer 9 | . . 4 5 Grunt 9 | 1 5 . 3 Best Kill Streak 10 | 1 4 2 10 Combat Bots Only 7 | 1 3 2 7 Max Kills in Single Turn 4 | 1 2 2 4 Gunslinging 1 | . . 1 . Exploded 3 | . 1 1 3 Melee . | . . . . Uniques/NPCs Destroyed . | . . . . Combat | -11 -10 -10 -9 -------- Run | Yrd Mat Min Mat Hostile Shots Fired 199 | 6 47 36 110 Missed 59 | 4 12 12 31 Hits 140 | 2 35 24 79 Projectile 140 | 2 35 24 79 Critical Strikes 6 | . 1 . 5 Damage Taken 1978 | 20 433 208 1317 Core 490 | . 60 21 409 Absorbed by Shields . | . . . . Redirected to Shielding 9 | . 9 . . Core Remaining (%) 83 | 100 . 67 . Volleys Fired 59 | 10 17 13 19 Largest 2 | 2 2 2 2 Hottest 100 | 40 100 100 100 Shots Fired 79 | 11 22 22 24 Gun 41 | 11 9 21 . Cannon 15 | . . . 15 Launcher 17 | . 9 . 8 Special 6 | . 4 1 1 Kinetic 41 | 11 9 21 . Thermal 6 | . 4 1 1 Explosive 17 | . 9 . 8 Electromagnetic 15 | . . . 15 Robot Hit Streak 9 | 4 3 3 9 Robot Miss Streak 5 | 1 2 5 3 Penetration Max . | . . . . Secondary Targets 1 | . . 1 . Max Gunslinging Chain 1 | . . 1 . Shots Hit Robots 36 | 5 12 10 9 Core Hits 47 | 3 14 7 23 Critical Kills . | . . . . Critical Parts Destroyed . | . . . . Critical Strikes . | . . . . Melee Attacks . | . . . . Impact . | . . . . Slashing . | . . . . Piercing . | . . . . Sneak Attacks . | . . . . Combat Hostiles . | . . . . Follow-up Attacks . | . . . . Damage Inflicted 1697 | 60 513 97 1027 Guns 231 | 60 82 89 . Cannons 229 | . . . 229 Explosions 1205 | . 407 . 798 Melee . | . . . . Ramming 8 | . . 8 . Kinetic 231 | 60 82 89 . Thermal 24 | . 24 . . Explosive 1205 | . 407 . 798 Electromagnetic 229 | . . . 229 Impact . | . . . . Slashing . | . . . . Piercing . | . . . . Highest Corruption 7 | . . . 7 Average Corruption 7 | . . . 7 Corruption Purged . | . . . . Corruption Blocked . | . . . . Effects 3 | . . . 3 Message Errors 1 | . . . 1 Matter Fused 1 | . . . 1 Energy Discharges 1 | . . . 1 Overload Shots . | . . . . Overflow Damage 5 | . . . 5 Projectiles . | . . . . Explosions 5 | . . . 5 Melee . | . . . . Knockbacks . | . . . . Impact . | . . . . Kinetic . | . . . . Secondary . | . . . . Self-Inflicted Damage 17 | . 17 . . Shots 2 | . 2 . . Rammed . | . . . . Targets Rammed 2 | . . 2 . Kicked 2 | . . 2 . Crushed . | . . . . Highest Temperature 110 | 6 110 24 78 Average Temperature 25 | 6 44 4 24 Received Heat Transfer 549 | 12 249 . 288 Siege Activations . | . . . . Martial Activations . | . . . . Shielding Activations . | . . . . Robots Disrupted 1 | . . . 1 Combat Hostiles 1 | . . . 1 Robots Corrupted . | . . . . Combat Hostiles . | . . . . Parts Fried . | . . . . Impact Corruptions . | . . . . Robots Melted . | . . . . Combat Hostiles . | . . . . Parts Melted . | . . . . Heat Transferred 50 | . 50 . . Parts Sabotaged . | . . . . Parts Stolen . | . . . . Parts Stripped . | . . . . Power Chain Reactions . | . . . . Alert | -11 -10 -10 -9 ------- Run | Yrd Mat Min Mat Maximum Alert Level 2 | . . . 2 Low Security (%) 95 | 100 100 100 74 Level 1 3 | . . . 20 Level 2 . | . . . 5 Level 3 . | . . . . Level 4 . | . . . . Level 5 . | . . . . High Security . | . . . . Max Security . | . . . . Peak Influence 429 | 20 108 48 429 Initial . | . . . . Average 37 | 4 36 4 154 Influence Increases 948 | 25 207 111 605 Destroy 0b10 Robot/C 600 | 20 100 80 400 Destroy 0b10 Robot/NC 40 | 5 10 . 25 Destroy Leader 92 | . 20 10 62 Allied During Kill 34 | . . . 34 Trap Triggered on 0b10 20 | . . 20 . Successful Hack 13 | . 2 . 11 Disable Machine 45 | . 15 . 30 Destroy Structure 74 | . 30 1 43 Lose Combat Pursuer 30 | . 30 . . Influence Decreases 624 | 25 207 111 281 Time Decay 470 | 25 193 111 141 Lost Part 114 | . 14 . 100 Lost Ally 40 | . . . 40 Squads Dispatched 3 | . 2 . 1 Investigation 1 | . 1 . . Extermination . | . . . . Reinforcement 2 | . 1 . 1 Assault . | . . . . Garrison . | . . . . Intercept . | . . . . Searches Triggered . | . . . . Construction Impeded . | . . . . Haulers Reinforced . | . . . . Active Scanning Responses . | . . . . Cargo Convoy Interrupts . | . . . . Stealth | -11 -10 -10 -9 --------- Run | Yrd Mat Min Mat Distress Signals 3 | . . 1 2 Communications Jammed . | . . . . Distress Signals . | . . . . Times Spotted 48 | 1 9 11 27 Peak Tracking Total 10 | 1 2 3 10 Tactical Retreats 2 | . 2 . . Traps | -11 -10 -10 -9 ------- Run | Yrd Mat Min Mat Traps Triggered . | . . . . Indirectly . | . . . . Trap Hack Attempts . | . . . . Triggered . | . . . . Disarmed . | . . . . Reprogrammed . | . . . . Reused 2 | . . 2 . Traps Extracted . | . . . . Installed 2 | . . 2 . Triggered 2 | . . 2 . Most Traps Carried 4 | . . 4 2 Machines | -11 -10 -10 -9 ---------- Run | Yrd Mat Min Mat Machines Disabled 3 | . 1 . 2 Max in Single Turn 1 | . 1 . 1 Machines Repaired . | . . . . Machines Dismantled . | . . . . Machines Sabotaged . | . . . . Overloaded Fab Kills . | . . . . Hacking | -11 -10 -10 -9 --------- Run | Yrd Mat Min Mat Machines Accessed 5 | . 3 . 2 Terminals 4 | . 2 . 2 Fabricators . | . . . . Repair Stations . | . . . . Recycling Units 1 | . 1 . . Scanalyzers . | . . . . Garrison Access . | . . . . Total Hacks 15 | . 8 . 7 Successful 8 | . 4 . 4 Failed 7 | . 4 . 3 Catastrophic 2 | . 1 . 1 Database Lockouts . | . . . . Manual 1 | . 1 . . Terminals 14 | . 7 . 7 Fabricators . | . . . . Repair Stations . | . . . . Recycling Units 1 | . 1 . . Scanalyzers . | . . . . Garrison Access . | . . . . Terminal Hacks 8 | . 4 . 4 Record 6 | . 4 . 2 Reinforcement Status 1 | . . . 1 Hauler Manifests 1 | . . . 1 Fabricator Hacks . | . . . . Repair Station Hacks . | . . . . Recycling Unit Hacks . | . . . . Scanalyzer . | . . . . Garrison Access Hacks . | . . . . Unauthorized Hacks . | . . . . Terminals . | . . . . Fabricators . | . . . . Repair Stations . | . . . . Recycling Units . | . . . . Scanalyzers . | . . . . Garrison Access . | . . . . Data Cores Recovered . | . . . . Used . | . . . . Hacking Detections 3 | . 2 . 1 Full Trace Events 1 | . 1 . . Feedback Events . | . . . . Feedback Blocked . | . . . . Robot Schematics Acquired . | . . . . Robots Built . | . . . . Authchips . | . . . . Time . | . . . . Total Robot Build Rating . | . . . . Part Schematics Acquired . | . . . . Parts Built . | . . . . Authchips . | . . . . Time . | . . . . Total Part Build Rating . | . . . . Parts Repaired . | . . . . Time . | . . . . Parts Recycled . | . . . . Recycled Matter . | . . . . Retrieved Matter . | . . . . Retrieved Components . | . . . . Parts Scanalyzed . | . . . . Part Schematics Acquired . | . . . . Parts Damaged . | . . . . Bothacking | -11 -10 -10 -9 ------------ Run | Yrd Mat Min Mat Used RIF Installer . | . . . . Robots Hacked . | . . . . Non-combat . | . . . . Combat . | . . . . Robot Hacks Applied . | . . . . Relay Couplers Released . | . . . . Fabnet Peak Effective % . | . . . . Robots Rewired . | . . . . Allies Hacked . | . . . . Hacks Repelled . | . . . . Allies | -11 -10 -10 -9 -------- Run | Yrd Mat Min Mat Total Allies 3 | . . 3 . Largest Group 3 | . . 3 3 Highest-Rated Group 71 | . . 71 71 Highest-Rated Ally 31 | . . 31 31 Total Orders . | . . . . Ally Attacks 30 | . . . 30 Total Damage 374 | . . . 374 Kills 12 | . . . 12 Allies Corrupted . | . . . . Allies Melted . | . . . . Intel | -11 -10 -10 -9 ------- Run | Yrd Mat Min Mat Active Infowar (turns) . | . . . . Robot Analysis Total . | . . . . Derelict Logs Recovered 2 | . . 2 . Drone Launches . | . . . . Drone Recoveries . | . . . . Exploration | -11 -10 -10 -9 ------------- Run | Yrd Mat Min Mat Turns Passed 2169 | 145 523 1131 370 Spaces Moved 1367 | 97 363 754 153 Core 18 | 17 . . 1 Treads . | . . . . Legs 1349 | 80 363 754 152 Wheels . | . . . . Hover . | . . . . Flight . | . . . . Fastest Speed 50 | 50 120 120 120 Average Speed 139 | 107 120 139 206 Slowest Speed 1350 | 120 120 400 1350 Overloaded Moves . | . . . . Propulsion Burnouts . | . . . . Robots Hopped . | . . . . Potential Cave-ins . | . . . . Cave-ins Triggered 1 | . . . 1 Exploration Rate (%) 41 | 7 40 99 20 Regions Visited 3 Branch Regions 1 Pre-discovered Areas 1 | . . 1 . Known Exits Taken . | . . . . Unknown Exits Taken 3 | 1 1 1 . Scrap Searched 1 | . . 1 . Spaces Dug 2 | . . 1 1 Terrain Destroyed 76 | . 33 1 42 Melee . | . . . . Projectile 2 | . . 1 1 AOE 74 | . 33 . 41 Terrain Rammed . | . . . . Walls Destroyed . | . . . . Machines Disabled . | . . . . Actions | -11 -10 -10 -9 --------- Run | Yrd Mat Min Mat Total 1553 | 129 424 812 188 Wait 23 | . 10 13 . Move 1364 | 96 362 753 153 Hop . | . . . . Pick Up 34 | 10 13 8 3 Fast Attach 7 | . . 4 3 Attach 22 | 7 9 3 3 Detach 8 | 2 4 1 1 Swap 12 | 1 3 4 4 Drop 20 | 3 6 9 2 Fire 59 | 10 17 13 19 Melee . | . . . . Ram . | . . . . Kick 2 | . . 2 . Crush . | . . . . Escape Stasis . | . . . . Rewire . | . . . . Trap 2 | . . 2 . Miscellaneous . | . . . . Route ------- -11/Scrapyard -10/Materials (discovered 2 exits: *Mat / [*Min]) -10/Mines (discovered 4 exits: *Mat x2 / [*Exi] / [*Sub]) -9/Materials (discovered 1 exit: Mat) History --------- Turn | Location | Event 2 | -11/Scrapyard | Met Revision 17 84 | -11/Scrapyard | Discovered new exit (range 8) 146 | -11/Scrapyard | Entered Materials 313 | -10/Materials | Build established: Mutant 316 | -10/Materials | Discovered new exit (range 9) 353 | -10/Materials | Discovered new exit (range 11) 669 | -10/Materials | Entered Mines 753 | -10/Mines | Met a Derelict bent on vengeance 779 | -10/Mines | Found a hidden stash of uninstalled traps 996 | -10/Mines | Joined a pair of Derelicts in attacking an 0b10 outpost 1228 | -10/Mines | Deemed a non-threat by the Exiles lab entrance 1228 | -10/Mines | Discovered new exit (range 5) 1372 | -10/Mines | Build established: Scavenger-Mutant 1571 | -10/Mines | Learned location of 1 exit from Materials 1581 | -10/Mines | Discovered new exit (range 9) 1618 | -10/Mines | Discovered new exit (range 11) 1622 | -10/Mines | Received a Mining Laser from a helpful Derelict 1800 | -10/Mines | Discovered new exit (range 6) 1800 | -10/Mines | Entered Materials 1800 | -9/Materials | Accompanied by 3 allies 1800 | -9/Materials | Evolved 2 slots: Propulsion x2 1801 | -9/Materials | Identified exit to Materials 1811 | -9/Materials | Led the pair of lost Derelicts to an unsafe place 2105 | -9/Materials | Crushed by falling debris 2123 | -9/Materials | Destroyed 7 combat bots 2129 | -9/Materials | Core integrity fell below 50% 2165 | -9/Materials | Core integrity fell below 20% 2170 | -9/Materials | Destroyed by G-34 Mercenary with Small Laser Last Messages --------------- PU/BFAE#SG80GP6:SPTCTFUFLHZ355C U-05 Engineer lays Concrete. R-06 Scavenger collects Terrain Scan Processor. K-01 Serf collects debris. Acquired 30 matter. U-05 Engineer lays Concrete. R-06 Scavenger collects Lgt. Ion Engine. K-01 Serf collects debris. R-06 Scavenger collects Lgt. Armor Plating. U-05 Engineer lays Concrete. K-01 Serf collects debris. U-05 Engineer lays Concrete. System corrupted: Matter fused (-5). U-05 Engineer lays Concrete. Aluminum Leg destroyed. Lgt. Ion Engine destroyed. U-05 Engineer lays Concrete. Aluminum Leg destroyed. Critical hit (Burn: +37). [Achievement: First Step to Greatness] Map ----- +----------------------------------------------------+ | ?????????????????????????????????????????????????? | | ?????????????????????????????????????????????????? | | ?????????????????????????????????????????????????? | | ?????????????????????????????????????????????????? | | ?????????????????????????????????????????????????? | | ???????????????????????????????????###########???? | | ???????????????????????????????????# ##### | | ???????????????????????????????????# # # | | ???????????????????????????????????# """ """ # # | | ???????????????????#???????????????# """ """ # # | | ?????????????? ???# ???????????????# """ """ + # | | ????????????? ??? ??????????????# # # | | ????????????? ??? "????????###???# ! # # | | ?????????????#+??# "???###### ###?# [ # # | | ??? ######### ??# "???# T #?########### # | | ??? ### ???# = #???????????# # | | ??? [ ! # """ # !% #???????????# # | | ???? =%=*% % " """ # #???????????# + | | ?????%*= =* # """ # #???????????# # | | ??????#%[ %[ ## # """ #???????????# # | | ??????# T# # """ #???????????# # | | ??????# ## [# """ #??????###### # | | ??????# % %## "T" # #??????# ## # | | ???????# *!#= #####+########## ## # | | ???????# % ########### ]###### ### + | | ???????# Y% @ # | | ???????# * [Y %g T # | | ??# t Y w a # | | ??# ##w# ########### ######## +####### | | ??# !%?# ###?????## ##?###### #??? | | ??# // ??#= [! ?????????# #???????# "" #??? | | ??# // ???# [! ?????????# #???????# Y" #??? | | ??# == ????# !! ?????????+ #???????# "" #??? | | ??##=??????# % #????????# #???????# #??? | | ???#???????########????????# #???????#= #??? | | ???????????????????????????# #???????########??? | | ???????????????????????????# #?????????????????? | | ???????????????????????????# #?????????????????? | | ???????????????????????????# #?????????????????? | | ???????????????????????????# +?????????????????? | | ???????????????????????????? ??????????????????? | | ?????????????????????????????????????????????????? | | ?????????????????????????????????????????????????? | | ?????????????????????????????????????????????????? | | ?????????????????????????????????????????????????? | | ?????????????????????????????????????????????????? | | ?????????????????????????????????????????????????? | | ?????????????????????????????????????????????????? | | ?????????????????????????????????????????????????? | | ?????????????????????????????????????????????????? | +----------------------------------------------------+ Best States ------------- Heat Dissipation 28 Energy Generation 12 Energy Capacity 265 Matter Stores 314 Matter Capacity 500 Sight Range 16 Terrain Scan Density 10 Propulsion Shielding 33 Evasion (%) 55 Targeting Accuracy 5 Item Schematics ----------------- None Robot Schematics ------------------ None Fabricated ------------ Nothing Repaired ---------- Nothing Alien Tech Used ----------------- None Achievements -------------- First Step to Greatness One Hack Too Far Shopping List Storm Trooper Uninvited Guest Unlikely Earthworm Challenges ------------ None Game ------ Seed GlidesysArcsightImmobilizer Manual? 0 Play Time 01:10:56 Cumulative 1.1 hours Start 2025.06.02 @ 18:25:21 End 2025.06.02 @ 22:08:06 Sessions 3 Manual Loads 0 Difficulty Rogue Special Mode None Game No. 1 Rogue 1 Adventurer 0 Explorer 0 Win Type - Total 0 Types 0/0/0/0/0/0/0/0/0/0 Lore% 0 Gallery% 1 Achievement% 2 Wizard Run 0 Options --------- Layout 0 ASCII 0 Keyboard 0 Movement Mouse Keybinds 0 Fullscreen 1 Font 18/SmallcapsGlow Map View 76x50 Zoom Use 0% Tactical HUD 0 Map Filters NONE Filters NONE Steam 1 RUN: 957ceb58-6bb4-4c81-8598-dab53762240d